[Event "*** SCC Grand Prix: Titled Tuesday Blitz"]
[Site "Chess.com"]
[Date "2020.10.13"]
[Round "6"]
[White "Kavyev_Ruslan"]
[Black "AlexeiShirov"]
[Result "1/2-1/2"]
[WhiteElo "2561"]
[BlackElo "2823"]
[TimeControl "180+1"]
[EndTime "11:07:30 PDT"]
[Termination "Game drawn by repetition"]

1. d4 {[%clk 0:03:00.2]} 1... d5 {[%clk 0:02:59.9]} 2. c4 {[%clk 0:03:00.5]}
2... c6 {[%clk 0:03:00.1]} 3. Nf3 {[%clk 0:03:00.7]} 3... Nf6 {[%clk 0:03:00.1]}
4. g3 {[%clk 0:03:01.1]} 4... dxc4 {[%clk 0:02:58.1]} 5. Bg2 {[%clk 0:03:00.9]}
5... g6 {[%clk 0:02:58.1]} 6. O-O {[%clk 0:02:53.2]} 6... Bg7 {[%clk 0:02:57.8]}
7. a4 {[%clk 0:02:44.7]} 7... O-O {[%clk 0:02:55.3]} 8. Qc2 {[%clk 0:02:41.7]}
8... Be6 {[%clk 0:02:50.2]} 9. Nbd2 {[%clk 0:02:40.9]} 9... Na6 {[%clk
0:02:48.1]} 10. Nxc4 {[%clk 0:02:30.9]} 10... Nb4 {[%clk 0:02:47.2]} 11. Qc3
{[%clk 0:02:31.3]} 11... a5 {[%clk 0:02:45.4]} 12. b3 {[%clk 0:02:28.4]} 12...
Nfd5 {[%clk 0:02:34.8]} 13. Qd2 {[%clk 0:02:19.6]} 13... b5 {[%clk 0:02:34]} 14.
Nce5 {[%clk 0:02:14.8]} 14... f6 {[%clk 0:02:28.1]} 15. Nd3 {[%clk 0:02:14.2]}
15... Nxd3 {[%clk 0:02:27.1]} 16. Qxd3 {[%clk 0:02:13.8]} 16... Nb4 {[%clk
0:02:26.7]} 17. Qd2 {[%clk 0:02:14]} 17... Bxb3 {[%clk 0:02:14.8]} 18. axb5
{[%clk 0:02:14.1]} 18... cxb5 {[%clk 0:02:13.8]} 19. Ba3 {[%clk 0:02:07.7]}
19... Qd6 {[%clk 0:02:07.9]} 20. Rab1 {[%clk 0:02:01.3]} 20... Bc4 {[%clk
0:02:06.5]} 21. Rfc1 {[%clk 0:01:50.5]} 21... Rfd8 {[%clk 0:01:58.1]} 22. e3
{[%clk 0:01:48.5]} 22... e5 {[%clk 0:01:56.3]} 23. Qb2 {[%clk 0:01:17.1]} 23...
Rac8 {[%clk 0:01:35.9]} 24. Qa1 {[%clk 0:01:00.1]} 24... e4 {[%clk 0:01:32.6]}
25. Nd2 {[%clk 0:00:59.2]} 25... f5 {[%clk 0:01:29.4]} 26. Nxc4 {[%clk
0:00:53.3]} 26... Rxc4 {[%clk 0:01:25.3]} 27. Rxc4 {[%clk 0:00:51.8]} 27... bxc4
{[%clk 0:01:24.6]} 28. Qc3 {[%clk 0:00:50.6]} 28... Rc8 {[%clk 0:01:20.3]} 29.
Bxb4 {[%clk 0:00:50.3]} 29... axb4 {[%clk 0:01:18.6]} 30. Rxb4 {[%clk
0:00:50.5]} 30... h5 {[%clk 0:01:04]} 31. Bf1 {[%clk 0:00:47]} 31... Kh7 {[%clk
0:01:03.1]} 32. Rxc4 {[%clk 0:00:45.7]} 32... Rxc4 {[%clk 0:01:01.7]} 33. Qxc4
{[%clk 0:00:45.4]} 33... h4 {[%clk 0:01:01.6]} 34. Qf7 {[%clk 0:00:43.8]} 34...
hxg3 {[%clk 0:01:00.1]} 35. hxg3 {[%clk 0:00:43.8]} 35... Qf6 {[%clk 0:00:58.2]}
36. Qe8 {[%clk 0:00:42.3]} 36... Qb6 {[%clk 0:00:54.1]} 37. Bc4 {[%clk
0:00:41.3]} 37... Qb1+ {[%clk 0:00:52.8]} 38. Kg2 {[%clk 0:00:40.7]} 38... Qd1
{[%clk 0:00:52.6]} 39. Qg8+ {[%clk 0:00:21]} 39... Kh6 {[%clk 0:00:51.5]} 40.
Qd8 {[%clk 0:00:20.8]} 40... Qg4 {[%clk 0:00:44.5]} 41. d5 {[%clk 0:00:16.2]}
41... f4 {[%clk 0:00:35.5]} 42. exf4 {[%clk 0:00:12.3]} 42... Qf3+ {[%clk
0:00:35.5]} 43. Kg1 {[%clk 0:00:12.5]} 43... Bd4 {[%clk 0:00:34.7]} 44. Qh4+
{[%clk 0:00:10.1]} 44... Kg7 {[%clk 0:00:33.9]} 45. Qe7+ {[%clk 0:00:10.4]}
45... Kh6 {[%clk 0:00:33.4]} 46. Qh4+ {[%clk 0:00:10.1]} 46... Kg7 {[%clk
0:00:32.3]} 47. Qe7+ {[%clk 0:00:06.6]} 47... Kh8 {[%clk 0:00:31.5]} 48. Qf8+
{[%clk 0:00:04.7]} 48... Kh7 {[%clk 0:00:31]} 49. Qe7+ {[%clk 0:00:05.1]} 49...
Kh8 {[%clk 0:00:30]} 50. Qf8+ {[%clk 0:00:05.3]} 50... Kh7 {[%clk 0:00:29.8]}
51. Qe7+ {[%clk 0:00:05.8]} 51... Kh6 {[%clk 0:00:29.3]} 52. Qh4+ {[%clk
0:00:06.1]} 1/2-1/2

[Event "*** SCC Grand Prix: Titled Tuesday Blitz"]
[Site "Chess.com"]
[Date "2020.10.13"]
[Round "6"]
[White "Gloomy_Wanderer"]
[Black "WPWPWP-2015"]
[Result "1-0"]
[WhiteElo "2765"]
[BlackElo "2506"]
[TimeControl "180+1"]
[EndTime "11:07:33 PDT"]
[Termination "Gloomy_Wanderer won on time"]

1. d4 {[%clk 0:03:00.9]} 1... Nf6 {[%clk 0:02:59.4]} 2. Nf3 {[%clk 0:03:00.7]}
2... e6 {[%clk 0:02:59.1]} 3. c4 {[%clk 0:03:01]} 3... d5 {[%clk 0:02:59]} 4. g3
{[%clk 0:03:01.1]} 4... Bb4+ {[%clk 0:02:57.7]} 5. Nc3 {[%clk 0:03:01.1]} 5...
O-O {[%clk 0:02:57.1]} 6. Bg2 {[%clk 0:03:01.2]} 6... c6 {[%clk 0:02:56.5]} 7.
Qb3 {[%clk 0:03:00.1]} 7... a5 {[%clk 0:02:53]} 8. O-O {[%clk 0:02:58.3]} 8...
Bd6 {[%clk 0:02:49.8]} 9. Nd2 {[%clk 0:02:48.4]} 9... Nbd7 {[%clk 0:02:42]} 10.
e4 {[%clk 0:02:47.8]} 10... dxe4 {[%clk 0:02:41.7]} 11. Ndxe4 {[%clk 0:02:47.9]}
11... Nxe4 {[%clk 0:02:40.1]} 12. Nxe4 {[%clk 0:02:48.8]} 12... a4 {[%clk
0:02:38.2]} 13. Qc2 {[%clk 0:02:43.3]} 13... Be7 {[%clk 0:02:38.3]} 14. Bf4
{[%clk 0:02:37.8]} 14... Nf6 {[%clk 0:02:31.7]} 15. Rad1 {[%clk 0:02:37.3]}
15... Qa5 {[%clk 0:02:20.1]} 16. Bg5 {[%clk 0:02:30.8]} 16... Qd8 {[%clk
0:02:18.5]} 17. Bf4 {[%clk 0:02:25.3]} 17... Qa5 {[%clk 0:02:17.7]} 18. Bd6
{[%clk 0:02:17.3]} 18... Qd8 {[%clk 0:01:55]} 19. Nxf6+ {[%clk 0:02:16.5]} 19...
gxf6 {[%clk 0:01:51.8]} 20. Bf4 {[%clk 0:02:16.6]} 20... Ra5 {[%clk 0:01:45.9]}
21. Bd2 {[%clk 0:02:11.9]} 21... Ra6 {[%clk 0:01:41.1]} 22. Bh6 {[%clk
0:02:11.3]} 22... Re8 {[%clk 0:01:39.9]} 23. d5 {[%clk 0:02:01.3]} 23... cxd5
{[%clk 0:01:37.1]} 24. cxd5 {[%clk 0:02:01.2]} 24... Qa5 {[%clk 0:01:33.7]} 25.
dxe6 {[%clk 0:01:31.5]} 25... fxe6 {[%clk 0:01:28.7]} 26. Qe2 {[%clk 0:01:26.6]}
26... Qf5 {[%clk 0:01:09.4]} 27. Be4 {[%clk 0:01:17]} 27... Qh3 {[%clk
0:01:09.1]} 28. Be3 {[%clk 0:01:13.4]} 28... e5 {[%clk 0:01:04]} 29. Rc1 {[%clk
0:01:05.1]} 29... f5 {[%clk 0:00:31.2]} 30. Bd5+ {[%clk 0:01:02.1]} 30... Kg7
{[%clk 0:00:28.3]} 31. Rc7 {[%clk 0:00:58.1]} 31... Rd6 {[%clk 0:00:25.1]} 32.
Bg2 {[%clk 0:00:53.7]} 32... Qg4 {[%clk 0:00:22]} 33. Qxg4+ {[%clk 0:00:50.3]}
33... fxg4 {[%clk 0:00:22]} 34. Rfc1 {[%clk 0:00:47.7]} 34... Be6 {[%clk
0:00:17.3]} 35. Rxb7 {[%clk 0:00:44.5]} 35... Bxa2 {[%clk 0:00:10.4]} 36. Bg5
{[%clk 0:00:43.2]} 36... Kf7 {[%clk 0:00:09]} 37. Be4 {[%clk 0:00:42.1]} 37...
h6 {[%clk 0:00:03.4]} 38. Be3 {[%clk 0:00:35.3]} 38... Ke6 {[%clk 0:00:02.8]}
39. Ra7 {[%clk 0:00:31.8]} 39... Bd5 {[%clk 0:00:02.9]} 40. Bxd5+ {[%clk
0:00:31.3]} 40... Rxd5 {[%clk 0:00:03.8]} 41. Rxa4 {[%clk 0:00:31.7]} 41... Bd6
{[%clk 0:00:04]} 42. Rxg4 {[%clk 0:00:31.2]} 42... Rd8 {[%clk 0:00:04.1]} 43.
Kg2 {[%clk 0:00:30.6]} 43... Kf5 {[%clk 0:00:04.4]} 44. h3 {[%clk 0:00:30.7]}
44... Rb5 {[%clk 0:00:04.3]} 45. Bxh6 {[%clk 0:00:24.2]} 45... Rxb2 {[%clk
0:00:04]} 46. Be3 {[%clk 0:00:24.9]} 46... Be7 {[%clk 0:00:03.8]} 47. Rc7 {[%clk
0:00:21.8]} 47... Bf6 {[%clk 0:00:03.9]} 48. Rf7 {[%clk 0:00:20.3]} 1-0

[Event "*** SCC Grand Prix: Titled Tuesday Blitz"]
[Site "Chess.com"]
[Date "2020.10.13"]
[Round "6"]
[White "jacky72"]
[Black "GMSrinath"]
[Result "0-1"]
[WhiteElo "2553"]
[BlackElo "2812"]
[TimeControl "180+1"]
[EndTime "11:07:36 PDT"]
[Termination "GMSrinath won by checkmate"]

1. d4 {[%clk 0:03:00.9]} 1... Nf6 {[%clk 0:02:59.3]} 2. c4 {[%clk 0:03:01.1]}
2... e6 {[%clk 0:02:59.2]} 3. Nf3 {[%clk 0:03:01.6]} 3... d5 {[%clk 0:02:59.2]}
4. Nc3 {[%clk 0:03:01.4]} 4... Bb4 {[%clk 0:02:58.9]} 5. cxd5 {[%clk 0:03:01]}
5... exd5 {[%clk 0:02:58.7]} 6. Bg5 {[%clk 0:03:01.2]} 6... h6 {[%clk 0:02:58]}
7. Bh4 {[%clk 0:03:01.1]} 7... g5 {[%clk 0:02:56.8]} 8. Bg3 {[%clk 0:03:01]}
8... Ne4 {[%clk 0:02:57.4]} 9. Rc1 {[%clk 0:02:57.6]} 9... c5 {[%clk 0:02:56.1]}
10. e3 {[%clk 0:02:57.8]} 10... Nc6 {[%clk 0:02:55.5]} 11. Bd3 {[%clk
0:02:52.1]} 11... Bf5 {[%clk 0:02:46.6]} 12. O-O {[%clk 0:02:50.3]} 12... Bxc3
{[%clk 0:02:43.7]} 13. bxc3 {[%clk 0:02:49.6]} 13... c4 {[%clk 0:02:44.4]} 14.
Bb1 {[%clk 0:02:47]} 14... h5 {[%clk 0:02:31.8]} 15. Ne5 {[%clk 0:02:25.2]}
15... h4 {[%clk 0:01:45.4]} 16. Qf3 {[%clk 0:02:10.3]} 16... Qc8 {[%clk
0:01:26.2]} 17. Nxc6 {[%clk 0:02:04.4]} 17... Bg4 {[%clk 0:01:00.3]} 18. Bxe4
{[%clk 0:01:30.6]} 18... Bxf3 {[%clk 0:00:59.9]} 19. Bxf3 {[%clk 0:01:31.5]}
19... hxg3 {[%clk 0:00:46.5]} 20. Ne5 {[%clk 0:01:30.8]} 20... gxh2+ {[%clk
0:00:45.4]} 21. Kh1 {[%clk 0:01:31.3]} 21... Qe6 {[%clk 0:00:45.2]} 22. e4
{[%clk 0:01:29.4]} 22... dxe4 {[%clk 0:00:40.3]} 23. Bxe4 {[%clk 0:01:30.3]}
23... Rb8 {[%clk 0:00:32.9]} 24. Rfe1 {[%clk 0:01:26.1]} 24... Kf8 {[%clk
0:00:30.2]} 25. Nf3 {[%clk 0:01:07.9]} 25... Qf6 {[%clk 0:00:28]} 26. Ne5 {[%clk
0:01:03]} 26... Kg7 {[%clk 0:00:20.1]} 27. Bf3 {[%clk 0:00:57.3]} 27... Qa6
{[%clk 0:00:15.4]} 28. Rc2 {[%clk 0:00:54.9]} 28... Rbe8 {[%clk 0:00:14.6]} 29.
Rb1 {[%clk 0:00:54.3]} 29... b5 {[%clk 0:00:13.6]} 30. Rcb2 {[%clk 0:00:50.9]}
30... f6 {[%clk 0:00:12.9]} 31. Ng4 {[%clk 0:00:48.5]} 31... Rb8 {[%clk
0:00:12.3]} 32. Ne3 {[%clk 0:00:48.3]} 32... Qa3 {[%clk 0:00:11.3]} 33. Nd5
{[%clk 0:00:39]} 33... Rhd8 {[%clk 0:00:09.3]} 34. Rxb5 {[%clk 0:00:15.6]} 34...
Rxb5 {[%clk 0:00:08.7]} 35. Rxb5 {[%clk 0:00:16.5]} 35... Rd7 {[%clk 0:00:05.9]}
36. Rb1 {[%clk 0:00:13.6]} 36... Qxa2 {[%clk 0:00:06]} 37. Re1 {[%clk
0:00:14.2]} 37... Qxf2 {[%clk 0:00:05.7]} 38. Rb1 {[%clk 0:00:12.6]} 38... g4
{[%clk 0:00:06]} 39. Be4 {[%clk 0:00:09]} 39... f5 {[%clk 0:00:06.4]} 40. Bxf5
{[%clk 0:00:04.2]} 40... Qxf5 {[%clk 0:00:07.3]} 41. Rf1 {[%clk 0:00:03.3]}
41... Qxf1+ {[%clk 0:00:07.2]} 42. Kxh2 {[%clk 0:00:04]} 42... Rxd5 {[%clk
0:00:07]} 43. g3 {[%clk 0:00:03.1]} 43... Rf5 {[%clk 0:00:07.9]} 44. d5 {[%clk
0:00:03.2]} 44... Rf2# {[%clk 0:00:08.8]} 0-1

[Event "*** SCC Grand Prix: Titled Tuesday Blitz"]
[Site "Chess.com"]
[Date "2020.10.13"]
[Round "6"]
[White "BanjoKazooieN64"]
[Black "tan275"]
[Result "1-0"]
[WhiteElo "2454"]
[BlackElo "2228"]
[TimeControl "180+1"]
[EndTime "11:07:39 PDT"]
[Termination "BanjoKazooieN64 won on time"]

1. e4 {[%clk 0:03:00.9]} 1... c6 {[%clk 0:02:59.7]} 2. Nc3 {[%clk 0:02:58.9]}
2... d5 {[%clk 0:02:59.4]} 3. Nf3 {[%clk 0:02:59.3]} 3... Nf6 {[%clk 0:02:59]}
4. exd5 {[%clk 0:02:52.1]} 4... cxd5 {[%clk 0:02:55.1]} 5. Bb5+ {[%clk
0:02:51.8]} 5... Bd7 {[%clk 0:02:53]} 6. Qe2 {[%clk 0:02:51.5]} 6... e6 {[%clk
0:02:47.2]} 7. O-O {[%clk 0:02:51.1]} 7... Bd6 {[%clk 0:02:43]} 8. d4 {[%clk
0:02:51]} 8... O-O {[%clk 0:02:40.3]} 9. Bg5 {[%clk 0:02:50.6]} 9... a6 {[%clk
0:02:30.2]} 10. Bd3 {[%clk 0:02:17]} 10... h6 {[%clk 0:02:26.5]} 11. Bh4 {[%clk
0:02:04.9]} 11... Nc6 {[%clk 0:02:24.8]} 12. Rad1 {[%clk 0:02:02.7]} 12... Nb4
{[%clk 0:02:17.7]} 13. Ne5 {[%clk 0:01:57.7]} 13... Be7 {[%clk 0:02:11.1]} 14.
Nxd7 {[%clk 0:01:51.7]} 14... Qxd7 {[%clk 0:02:02.4]} 15. f4 {[%clk 0:01:50.7]}
15... Nxd3 {[%clk 0:01:59.6]} 16. Rxd3 {[%clk 0:01:50.2]} 16... Rac8 {[%clk
0:01:46.2]} 17. Re3 {[%clk 0:01:42.1]} 17... Rfe8 {[%clk 0:01:34.2]} 18. Re1
{[%clk 0:01:39.5]} 18... Ne4 {[%clk 0:01:01.6]} 19. Bxe7 {[%clk 0:01:26.9]}
19... Nxc3 {[%clk 0:01:01.3]} 20. bxc3 {[%clk 0:01:27.2]} 20... Qxe7 {[%clk
0:00:51.3]} 21. f5 {[%clk 0:01:28.1]} 21... Rc6 {[%clk 0:00:49.9]} 22. Qg4
{[%clk 0:01:21.1]} 22... Qg5 {[%clk 0:00:45.6]} 23. Qf3 {[%clk 0:01:18.1]} 23...
Kh7 {[%clk 0:00:26.1]} 24. g3 {[%clk 0:01:15.5]} 24... Rec8 {[%clk 0:00:22.9]}
25. fxe6 {[%clk 0:01:13.8]} 25... fxe6 {[%clk 0:00:22.4]} 26. h4 {[%clk
0:01:09.9]} 26... Qg6 {[%clk 0:00:16.8]} 27. R1e2 {[%clk 0:01:06.5]} 27... b5
{[%clk 0:00:15.6]} 28. a3 {[%clk 0:01:05.8]} 28... a5 {[%clk 0:00:14.3]} 29. Kh2
{[%clk 0:01:04.9]} 29... b4 {[%clk 0:00:13.6]} 30. axb4 {[%clk 0:01:05]} 30...
axb4 {[%clk 0:00:13.8]} 31. cxb4 {[%clk 0:01:04.6]} 31... Rxc2 {[%clk
0:00:14.3]} 32. Kh3 {[%clk 0:01:01.2]} 32... Rxe2 {[%clk 0:00:13.7]} 33. Rxe2
{[%clk 0:00:59.7]} 33... Rc1 {[%clk 0:00:12.9]} 34. Qe3 {[%clk 0:00:46.6]} 34...
Qb1 {[%clk 0:00:12]} 35. Qxe6 {[%clk 0:00:37.7]} 35... Rh1+ {[%clk 0:00:11.8]}
36. Kg4 {[%clk 0:00:37.7]} 36... Qd3 {[%clk 0:00:05.9]} 37. Qf5+ {[%clk
0:00:35.8]} 37... Qxf5+ {[%clk 0:00:05.7]} 38. Kxf5 {[%clk 0:00:36.7]} 38... Rb1
{[%clk 0:00:05.9]} 39. Ke5 {[%clk 0:00:30.4]} 39... Rxb4 {[%clk 0:00:05.9]} 40.
Kxd5 {[%clk 0:00:30.1]} 40... Kg6 {[%clk 0:00:06.3]} 41. Kc5 {[%clk 0:00:27.5]}
41... Rb3 {[%clk 0:00:06.7]} 42. d5 {[%clk 0:00:23.4]} 42... Rc3+ {[%clk
0:00:05.6]} 43. Kd4 {[%clk 0:00:20.9]} 43... Rxg3 {[%clk 0:00:04.6]} 44. d6
{[%clk 0:00:21.4]} 44... Rg1 {[%clk 0:00:04]} 45. Ke5 {[%clk 0:00:18.1]} 45...
Rd1 {[%clk 0:00:03.3]} 46. Ke6 {[%clk 0:00:17.6]} 46... Rd4 {[%clk 0:00:01.2]}
47. d7 {[%clk 0:00:16.5]} 1-0

[Event "*** SCC Grand Prix: Titled Tuesday Blitz"]
[Site "Chess.com"]
[Date "2020.10.13"]
[Round "6"]
[White "Hikaru"]
[Black "Guenplen"]
[Result "1-0"]
[WhiteElo "3216"]
[BlackElo "2862"]
[TimeControl "180+1"]
[EndTime "11:07:41 PDT"]
[Termination "Hikaru won by resignation"]

1. e4 {[%clk 0:03:00.9]} 1... c5 {[%clk 0:02:59.8]} 2. Nf3 {[%clk 0:03:01.2]}
2... e6 {[%clk 0:03:00]} 3. d4 {[%clk 0:03:01.6]} 3... cxd4 {[%clk 0:03:00.9]}
4. Nxd4 {[%clk 0:03:02.4]} 4... Nf6 {[%clk 0:03:01.3]} 5. Bd3 {[%clk 0:03:02.5]}
5... Nc6 {[%clk 0:03:01]} 6. Nxc6 {[%clk 0:03:02.6]} 6... bxc6 {[%clk
0:03:01.9]} 7. Nd2 {[%clk 0:03:01.2]} 7... d5 {[%clk 0:03:01.9]} 8. O-O {[%clk
0:03:01.8]} 8... Be7 {[%clk 0:03:01.8]} 9. Qe2 {[%clk 0:03:02.1]} 9... O-O
{[%clk 0:03:00.9]} 10. b3 {[%clk 0:03:02.5]} 10... a5 {[%clk 0:03:00.8]} 11. a4
{[%clk 0:02:58.9]} 11... Nd7 {[%clk 0:02:58]} 12. Rd1 {[%clk 0:02:55.4]} 12...
Nc5 {[%clk 0:02:53.7]} 13. Ba3 {[%clk 0:02:53.6]} 13... Nxd3 {[%clk 0:02:49.1]}
14. Qxd3 {[%clk 0:02:53.8]} 14... Bxa3 {[%clk 0:02:45.7]} 15. Rxa3 {[%clk
0:02:54.7]} 15... Ba6 {[%clk 0:02:44.9]} 16. Qe3 {[%clk 0:02:53.4]} 16... d4
{[%clk 0:02:31.4]} 17. Qg3 {[%clk 0:02:53.5]} 17... c5 {[%clk 0:02:30.2]} 18.
Raa1 {[%clk 0:02:48]} 18... Qb8 {[%clk 0:02:23.5]} 19. e5 {[%clk 0:02:44.1]}
19... f6 {[%clk 0:02:04.9]} 20. exf6 {[%clk 0:02:20.2]} 20... Qxg3 {[%clk
0:02:00.6]} 21. f7+ {[%clk 0:02:19.9]} 21... Rxf7 {[%clk 0:01:39.8]} 22. hxg3
{[%clk 0:02:20.8]} 22... Bb7 {[%clk 0:01:36.4]} 23. Rac1 {[%clk 0:02:18.7]}
23... Bd5 {[%clk 0:01:35.4]} 24. Re1 {[%clk 0:02:14.2]} 24... Rb7 {[%clk
0:01:26]} 25. c4 {[%clk 0:02:11.5]} 25... dxc3 {[%clk 0:01:24.5]} 26. Rxc3
{[%clk 0:02:11.8]} 26... Kf7 {[%clk 0:01:19]} 27. Rxc5 {[%clk 0:02:10]} 27...
Bxb3 {[%clk 0:01:18.4]} 28. Nxb3 {[%clk 0:01:44.7]} 28... Rxb3 {[%clk
0:01:16.4]} 29. Rc7+ {[%clk 0:01:44.9]} 29... Kf6 {[%clk 0:01:03.8]} 30. Rc6
{[%clk 0:01:45.2]} 30... Re8 {[%clk 0:01:03.1]} 31. Ra6 {[%clk 0:01:45.2]} 31...
Ra3 {[%clk 0:00:53.6]} 32. Rxa5 {[%clk 0:01:45.4]} 32... Ra2 {[%clk 0:00:52.1]}
33. Ra7 {[%clk 0:01:44.1]} 33... Rd8 {[%clk 0:00:45.5]} 34. Ra6 {[%clk
0:01:41.8]} 34... Re8 {[%clk 0:00:41.5]} 35. Re3 {[%clk 0:01:33.2]} 35... h5
{[%clk 0:00:38.6]} 36. Rf3+ {[%clk 0:01:26.7]} 36... Kg6 {[%clk 0:00:38.2]} 37.
Kh2 {[%clk 0:01:22.9]} 37... Kh7 {[%clk 0:00:34.4]} 38. Ra7 {[%clk 0:01:19.2]}
38... Kh6 {[%clk 0:00:17.9]} 39. Rff7 {[%clk 0:01:17.7]} 39... Rg8 {[%clk
0:00:17.8]} 40. f4 {[%clk 0:00:58.8]} 40... Kg6 {[%clk 0:00:14.5]} 41. Rfc7
{[%clk 0:00:57.7]} 41... Kf6 {[%clk 0:00:07.8]} 42. a5 {[%clk 0:00:56]} 42...
Kg6 {[%clk 0:00:03.5]} 43. Rc5 {[%clk 0:00:45.1]} 43... Rd8 {[%clk 0:00:02.9]}
44. Rg5+ {[%clk 0:00:45.2]} 44... Kf6 {[%clk 0:00:02.6]} 45. Rgxg7 {[%clk
0:00:44]} 45... Kf5 {[%clk 0:00:02.2]} 46. Rg5+ {[%clk 0:00:41.5]} 46... Ke4
{[%clk 0:00:02.6]} 47. Re5+ {[%clk 0:00:41.4]} 47... Kd3 {[%clk 0:00:02]} 48.
Rxe6 {[%clk 0:00:38.2]} 48... h4 {[%clk 0:00:01.9]} 49. g4 {[%clk 0:00:32.8]}
49... Kc3 {[%clk 0:00:02.2]} 50. Rc7+ {[%clk 0:00:30]} 50... Kd4 {[%clk
0:00:02.3]} 51. Kh3 {[%clk 0:00:21.5]} 51... Rb8 {[%clk 0:00:02.3]} 52. a6
{[%clk 0:00:21.1]} 52... Rbb2 {[%clk 0:00:01.7]} 53. Kxh4 {[%clk 0:00:21.3]}
53... Rxg2 {[%clk 0:00:01.8]} 54. a7 {[%clk 0:00:21.2]} 54... Ra5 {[%clk
0:00:01.7]} 55. f5 {[%clk 0:00:21.4]} 55... Rh2+ {[%clk 0:00:01.9]} 56. Kg5
{[%clk 0:00:21.4]} 56... Rh8 {[%clk 0:00:02.8]} 1-0

[Event "*** SCC Grand Prix: Titled Tuesday Blitz"]
[Site "Chess.com"]
[Date "2020.10.13"]
[Round "6"]
[White "AldokhinIvan"]
[Black "dosto07"]
[Result "1-0"]
[WhiteElo "2541"]
[BlackElo "2329"]
[TimeControl "180+1"]
[EndTime "11:07:44 PDT"]
[Termination "AldokhinIvan won by resignation"]

1. e4 {[%clk 0:02:38.3]} 1... e5 {[%clk 0:02:57]} 2. Nf3 {[%clk 0:02:38.9]} 2...
Nc6 {[%clk 0:02:55.8]} 3. Bb5 {[%clk 0:02:39.6]} 3... a6 {[%clk 0:02:54.2]} 4.
Ba4 {[%clk 0:02:39.9]} 4... Nf6 {[%clk 0:02:54.4]} 5. O-O {[%clk 0:02:40.5]}
5... Be7 {[%clk 0:02:54.6]} 6. Re1 {[%clk 0:02:40.7]} 6... b5 {[%clk 0:02:54.4]}
7. Bb3 {[%clk 0:02:41]} 7... O-O {[%clk 0:02:53.7]} 8. c3 {[%clk 0:02:41.3]}
8... d6 {[%clk 0:02:53.3]} 9. d4 {[%clk 0:02:41.3]} 9... Bg4 {[%clk 0:02:51.8]}
10. d5 {[%clk 0:02:41.1]} 10... Na5 {[%clk 0:02:51.8]} 11. Bc2 {[%clk
0:02:41.7]} 11... c6 {[%clk 0:02:51.9]} 12. h3 {[%clk 0:02:42.4]} 12... Bc8
{[%clk 0:02:47.4]} 13. dxc6 {[%clk 0:02:42.3]} 13... Qc7 {[%clk 0:02:47.4]} 14.
Nbd2 {[%clk 0:02:43.2]} 14... Qxc6 {[%clk 0:02:42.8]} 15. Nf1 {[%clk 0:02:44.1]}
15... Nc4 {[%clk 0:02:36.4]} 16. b3 {[%clk 0:02:34.7]} 16... Nb6 {[%clk
0:02:32.6]} 17. Bd2 {[%clk 0:02:33.8]} 17... a5 {[%clk 0:02:23.4]} 18. Bd3
{[%clk 0:02:24.4]} 18... Bd7 {[%clk 0:02:18.1]} 19. g4 {[%clk 0:02:16.8]} 19...
h5 {[%clk 0:02:10.7]} 20. g5 {[%clk 0:02:15.7]} 20... Nh7 {[%clk 0:02:10.3]} 21.
Kh2 {[%clk 0:02:02.5]} 21... g6 {[%clk 0:02:09]} 22. Ng3 {[%clk 0:01:58.4]}
22... f6 {[%clk 0:02:01.2]} 23. gxf6 {[%clk 0:01:46.5]} 23... Rxf6 {[%clk
0:02:00.8]} 24. Be3 {[%clk 0:01:26.9]} 24... Raf8 {[%clk 0:01:55.9]} 25. Be2
{[%clk 0:01:14]} 25... Bd8 {[%clk 0:01:35.1]} 26. Rg1 {[%clk 0:01:09.4]} 26...
Kh8 {[%clk 0:01:33.6]} 27. Rg2 {[%clk 0:01:07.4]} 27... Qc8 {[%clk 0:01:27.7]}
28. h4 {[%clk 0:00:24.9]} 28... Bh3 {[%clk 0:01:22.3]} 29. Rg1 {[%clk
0:00:18.8]} 29... Bg4 {[%clk 0:01:22.1]} 30. Ng5 {[%clk 0:00:16.8]} 30... Nxg5
{[%clk 0:01:11.9]} 31. hxg5 {[%clk 0:00:17.2]} 31... Rxf2+ {[%clk 0:01:04.2]}
32. Bxf2 {[%clk 0:00:17.4]} 32... Rxf2+ {[%clk 0:01:04.1]} 33. Rg2 {[%clk
0:00:18]} 33... Rxg2+ {[%clk 0:00:58.2]} 34. Kxg2 {[%clk 0:00:17.9]} 34... Qxc3
{[%clk 0:00:45.2]} 35. Bxg4 {[%clk 0:00:16.7]} 35... hxg4 {[%clk 0:00:43]} 36.
Rc1 {[%clk 0:00:11.3]} 36... Qe3 {[%clk 0:00:37.7]} 37. Rc6 {[%clk 0:00:07]}
37... Bxg5 {[%clk 0:00:29.5]} 38. Qxg4 {[%clk 0:00:06.8]} 38... Bf4 {[%clk
0:00:24.2]} 39. Rxd6 {[%clk 0:00:05.2]} 39... Qxg3+ {[%clk 0:00:15]} 40. Qxg3
{[%clk 0:00:05.6]} 40... Bxg3 {[%clk 0:00:15.2]} 41. Kxg3 {[%clk 0:00:06.5]}
41... Nc8 {[%clk 0:00:11.2]} 42. Rd8+ {[%clk 0:00:06.7]} 42... Kg7 {[%clk
0:00:11.8]} 43. Rxc8 {[%clk 0:00:07.6]} 43... Kf6 {[%clk 0:00:12.3]} 44. Rc5
{[%clk 0:00:08.5]} 44... Ke6 {[%clk 0:00:12]} 45. Rxb5 {[%clk 0:00:09]} 45... a4
{[%clk 0:00:12.5]} 46. bxa4 {[%clk 0:00:09.2]} 46... Kd6 {[%clk 0:00:13.4]} 47.
Kg4 {[%clk 0:00:09.2]} 47... Kc6 {[%clk 0:00:14.3]} 48. Kg5 {[%clk 0:00:10.1]}
48... Kd6 {[%clk 0:00:14.2]} 49. Kxg6 {[%clk 0:00:11]} 49... Ke6 {[%clk
0:00:14.9]} 50. Kg5 {[%clk 0:00:11.4]} 50... Kd6 {[%clk 0:00:15.8]} 51. Kf5
{[%clk 0:00:12.3]} 51... Kc6 {[%clk 0:00:15.8]} 52. Rxe5 {[%clk 0:00:13.2]}
52... Kd6 {[%clk 0:00:15.8]} 53. Rd5+ {[%clk 0:00:14.1]} 53... Kc6 {[%clk
0:00:15.7]} 54. a5 {[%clk 0:00:15]} 54... Kb7 {[%clk 0:00:15.4]} 55. Ke5 {[%clk
0:00:15.6]} 55... Ka6 {[%clk 0:00:15.5]} 56. Kd4 {[%clk 0:00:16.5]} 56... Kb7
{[%clk 0:00:15.5]} 57. e5 {[%clk 0:00:17.4]} 57... Ka6 {[%clk 0:00:15.5]} 58. e6
{[%clk 0:00:18.3]} 58... Kb7 {[%clk 0:00:15.4]} 59. e7 {[%clk 0:00:19.2]} 59...
Ka6 {[%clk 0:00:16.3]} 60. e8=Q {[%clk 0:00:19.5]} 1-0